fUSD/lending_fUSD_20250823
["ID","MTS","AMOUNT","RATE_DAILY","PERIOD"]
[381011944,1755941432038,-880.81066434,0.00011649,2]
[381011946,1755941432047,-1000.0,0.00011733,2]
[381011948,1755941432056,-2500.0,0.00011831,2]
[381011950,1755941432065,-1348.73,0.00011835,2]
[381011952,1755941432075,-155.0,0.00011837,2]
[381011954,1755941432086,-555.43386434,0.0001185,2]
[381011956,1755941432095,-184.71775882,0.0001185,2]
[381011958,1755941432105,-500.0,0.00011854,2]
[381011961,1755941432114,-390.47584093,0.00011854,2]
[381011964,1755941432123,-10039.88868387,0.00011861,2]
[381012072,1755941433237,-9805.73974299,0.00011861,2]
[381012073,1755941433249,-1454.0,0.00011861,2]
[381012074,1755941433286,-1008.74102828,0.00011861,2]
[381012075,1755941433298,-498.175,0.00011861,2]
[381012076,1755941433394,-143.52393446,0.00011861,2]
[381012077,1755941433404,-874.87016695,0.00011861,2]
[381012078,1755941433418,-2222.92156002,0.00011861,2]
[381012079,1755941433430,-319.36855405,0.00011861,2]
[381012080,1755941433452,-1281.84774372,0.00011861,2]
[381012081,1755941433464,-276.89564166,0.00011861,2]
[381012082,1755941433475,-3164.72285238,0.00011861,2]
[381012083,1755941433489,-752.50464762,0.00011861,2]
[381012084,1755941433499,-11.98089624,0.000119,2]
[381012085,1755941433511,-413.60445614,0.000119,2]
[381012086,1755941433523,-302.61224762,0.000119,2]
[381012087,1755941433533,-183.45063011,0.000119,2]
[381012088,1755941433544,-304.52886106,0.000119,2]
[381012089,1755941433555,-151.0,0.000119,2]
[381012090,1755941433565,-151.0,0.000119,2]
[381012091,1755941433574,-152.0,0.000119,2]
[381012092,1755941433583,-152.0,0.000119,2]
[381012093,1755941433593,-152.0,0.000119,2]
[381012094,1755941433602,-152.0,0.000119,2]
[381012095,1755941433611,-152.0,0.000119,2]
[381012096,1755941433621,-152.0,0.000119,2]
[381012097,1755941433630,-152.0,0.000119,2]
[381012098,1755941433640,-152.0,0.000119,2]
[381012099,1755941433650,-152.0,0.000119,2]
[381012100,1755941433660,-152.0,0.000119,2]
[381012101,1755941433669,-1220.0,0.000119,2]
[381012102,1755941433679,-152.0,0.000119,2]
[381012103,1755941433688,-152.0,0.000119,2]
[381012104,1755941433698,-152.0,0.000119,2]
[381012105,1755941433708,-1220.0,0.000119,2]
[381012106,1755941433717,-1220.0,0.000119,2]
[381012107,1755941433727,-587.69531439,0.000119,2]
[381012108,1755941433739,-632.30468561,0.000119,2]
[381012109,1755941433749,-1220.0,0.000119,2]
[381012110,1755941433759,-1220.0,0.000119,2]
[381012111,1755941433768,-1220.0,0.000119,2]
[381012112,1755941433777,-152.68849095,0.000119,2]
[381012113,1755941433787,-201.4054996,0.000119,2]
[381012114,1755941433796,-699.14999,0.000119,2]
[381012115,1755941433807,-151.0,0.000119,2]
[381012116,1755941433818,-151.0,0.000119,2]
[381012117,1755941433827,-500.0,0.00011909,2]
[381012118,1755941433837,-166.66,0.00011931,2]
[381012119,1755941433846,-1.04526901,0.0001195,2]
[381012120,1755941433858,-396.32155451,0.0001195,2]
[381012121,1755941433867,-232.8528746,0.0001195,2]
[381012125,1755941437677,-862.46044217,0.00011601,2]
[381012126,1755941437689,-1247.53955783,0.0001195,2]
[381012127,1755941437829,-263683.84083826,0.0001195,2]
[381012128,1755941437839,-4018.35718943,0.0001195,2]
[381012129,1755941437848,-322.6107,0.00011952,2]
[381012130,1755941437858,-160.0,0.00011952,2]
[381012131,1755941437867,-3813.21398523,0.00011952,2]
[381012132,1755941437877,-151.0,0.00011952,2]
[381012133,1755941437888,-721.12765535,0.00011952,2]
[381012134,1755941437898,-277.35679052,0.00011952,2]
[381012136,1755941437908,-500.0,0.00011964,2]
[381012138,1755941437917,-158.44162294,0.00011973,2]
[381012140,1755941437927,-500.0,0.00011973,2]
[381012141,1755941437937,-500.0,0.00011973,2]
[381012142,1755941437948,-500.0,0.00011973,2]
[381012143,1755941437957,-500.0,0.00011973,2]
[381012144,1755941438267,-500.0,0.00011973,2]
[381012145,1755941438282,-3101137.6516308,0.00012,2]
[381012146,1755941438292,-7241.04,0.00012,2]
[381012147,1755941438302,-1110008.00414052,0.00012,2]
[381012148,1755941438335,-422.43528278,0.00012,2]
[381012149,1755941438358,-352.86103707,0.00012,2]
[381012155,1755941439558,-840.20119057,0.00012,2]
[381012156,1755941439610,-113166.11695787,0.00012,2]
[381012157,1755941439620,-100411.68,0.00012,2]
[381012158,1755941439629,-260.33723783,0.00012007,2]
[381012159,1755941439639,-165.3,0.00012056,2]
[381012160,1755941439648,-299.99,0.00012087,2]
[381012161,1755941439657,-255.0,0.00012111,2]
[381012162,1755941439666,-1680.0,0.00012147,2]
[381012163,1755941439675,-420.0,0.00012153,2]
[381012164,1755941439684,-699.14999,0.0001222,2]
[381012165,1755941439693,-1000.0,0.00012249,2]
[381012166,1755941439702,-1612.32,0.00012348,2]
[381012167,1755941439711,-1612.32,0.00012348,2]
[381012168,1755941439720,-1612.32,0.00012348,2]
[381012169,1755941439729,-1612.32,0.00012348,2]
[381012170,1755941439741,-1612.32,0.00012348,2]
[381012171,1755941439750,-1612.32,0.00012348,2]
[381012172,1755941439760,-1612.32,0.00012348,2]
[381012173,1755941439769,-1612.32,0.00012348,2]
[381012174,1755941439778,-1612.32,0.00012348,2]
[381012175,1755941439787,-1612.32,0.00012348,2]
[381012176,1755941439797,-1612.32,0.00012348,2]
[381012177,1755941439806,-1612.32,0.00012348,2]
[381012178,1755941439816,-1612.32,0.00012348,2]
[381012179,1755941439825,-1612.32,0.00012348,2]
[381012180,1755941439835,-1612.32,0.00012348,2]
[381012181,1755941439845,-1612.32,0.00012348,2]
[381012182,1755941439854,-1612.32,0.00012348,2]
[381012183,1755941439865,-1612.32,0.00012348,2]
[381012184,1755941439875,-1612.32,0.00012348,2]
[381012185,1755941439902,-1612.32,0.00012348,2]
[381012186,1755941439911,-1612.32,0.00012348,2]
[381012187,1755941439922,-1612.32,0.00012348,2]
[381012188,1755941439932,-1612.32,0.00012348,2]
[381012189,1755941439942,-1612.32783378,0.00012348,2]
[381012190,1755941439951,-3917.2275,0.00012349,2]
[381012191,1755941439962,-3000.01,0.0001235,2]
[381012192,1755941439972,-4975.9036664,0.00012353,2]
[381012193,1755941439981,-166.04,0.00012356,2]
[381012194,1755941439991,-158.84,0.0001236,2]
[381012195,1755941440000,-286.32,0.0001236,2]
[381012196,1755941440010,-1206.22,0.0001236,2]
[381012197,1755941440019,-300.78,0.00012375,2]
[381012198,1755941440028,-150.0,0.00012375,2]
[381012199,1755941440037,-245.888,0.0001243,2]
[381012200,1755941440047,-22950.0683896,0.0001244,2]
[381012201,1755941440057,-227.0,0.0001247,2]
[381012202,1755941440066,-201.40549957,0.00012515,2]
[381012203,1755941440075,-1657.0,0.0001252,2]
[381012204,1755941440085,-566.0,0.0001252,2]
[381012205,1755941440094,-599.0,0.0001252,2]
[381012206,1755941440103,-1298.0,0.0001252,2]
[381012207,1755941440113,-1173.0,0.0001252,2]
[381012208,1755941440122,-894.0,0.0001252,2]
[381012209,1755941440131,-6093.0,0.0001252,2]
[381012210,1755941440141,-1255.0,0.0001252,2]
[381012211,1755941440150,-4153.0,0.0001252,2]
[381012212,1755941440160,-2030.0,0.0001252,2]
[381012213,1755941440169,-3373.0,0.0001252,2]
[381012214,1755941440180,-1000.0,0.00012521,2]
[381012215,1755941440189,-699.14999,0.0001272,2]
[381012216,1755941440199,-3917.2275,0.00012838,2]
[381012217,1755941440209,-4975.9036664,0.00012845,2]
[381012218,1755941440218,-490.27458233,0.00012937,2]
[381012219,1755941440228,-184.71775879,0.00012981,2]
[381012220,1755941440239,-1000.0,0.00013,2]
[381012221,1755941440249,-1000.0,0.00013,2]
[381012222,1755941440259,-1200.0,0.00013,3]
[381012223,1755941440268,-1000.0,0.00013,3]
[381012224,1755941440277,-1000.0,0.00013,3]
[381012225,1755941440286,-1000.0,0.00013,3]
[381012226,1755941440296,-1000.0,0.00013,3]
[381012227,1755941440305,-1000.0,0.00013,2]
[381012228,1755941440314,-1000.0,0.00013,2]
[381012229,1755941440324,-1000.0,0.00013,2]
[381012230,1755941440333,-10271.28828689,0.00013018,2]
[381012231,1755941440418,-1273.216,0.00013018,2]
[381012232,1755941440430,-2158.4752107,0.00013018,2]
[381012250,1755941445647,-173.67,0.0001236,2]
[381012251,1755941445657,-925.0,0.0001252,2]
[381012252,1755941445669,-2858.12592754,0.00013018,2]
[381012253,1755941445682,-616.535017,0.00013018,2]
[381012254,1755941445703,-934.40077117,0.00013018,2]
[381012255,1755941445865,-1245.0,0.00013018,2]
[381012256,1755941445922,-470.68411629,0.00013018,2]
[381012257,1755941445983,-3122.34306001,0.00013018,2]
[381012258,1755941445995,-1000.0,0.00013037,2]
[381012259,1755941446004,-1500.0,0.00013068,2]
[381012260,1755941446015,-201.40549957,0.0001313,2]
[381012261,1755941446024,-1810.0,0.00013181,2]
[381012262,1755941446035,-1788.96,0.00013182,2]
[381012263,1755941446046,-546.41,0.00013182,2]
[381012264,1755941446056,-539.5,0.00013182,2]
[381012265,1755941446065,-544.4,0.00013182,2]
[381012266,1755941446075,-699.15,0.0001322,2]
[381012267,1755941446085,-433.0,0.00013261,2]
[381012268,1755941446094,-334.5472959,0.00013321,2]
[381012269,1755941446104,-160.0,0.00013321,2]
[381012270,1755941446115,-287.61899177,0.00013321,2]
[381012271,1755941446126,-3917.2275,0.00013326,2]
[381012272,1755941446135,-4513.78997128,0.00013337,2]
[381012277,1755941602887,500.0,0.00028766,120]
[381012279,1755941711000,1814.3319718,0.00028767,120]
[381012281,1755941871244,819.0,0.00028767,120]
[381012282,1755942013535,460.0,0.00026408,120]
[381012283,1755942014771,460.0,0.00027728,120]
[381012287,1755942223732,800.0,0.00028,120]
[381012288,1755942240786,1000.0,0.000284,120]
[381012289,1755942250540,2000.75,0.00028767,120]
[381012290,1755942286262,641.0,0.000284,120]
[381012291,1755942295607,1000.0,0.000284,120]
[381012292,1755942309167,276.0,0.00026104,120]
[381012293,1755942310422,276.0,0.00027409,120]
[381012295,1755942476986,1622.1822131,0.00015,7]
[381012298,1755942608568,165.0,0.00026019,120]
[381012299,1755942609860,165.0,0.0002732,120]
[381012300,1755942611124,165.0,0.00028686,120]
[381012302,1755942631822,-223.0,0.000109,2]
[381012303,1755942631834,-762.58140418,0.0001099,2]
[381012304,1755942631959,-542.41859582,0.0001099,2]
[381012305,1755942631969,-615.49260366,0.00011355,2]
[381012321,1755942632365,-317.10508839,0.00011355,2]
[381012346,1755942638162,-533.14861496,0.00011355,2]
[381012353,1755942639965,-360.59079927,0.00011355,2]
[381012354,1755942640126,-408.48720001,0.00011355,2]
[381012355,1755942640139,-265.17569371,0.00011355,2]
[381012356,1755942640149,-527.0,0.00011781,2]
[381012357,1755942640159,-1200.0,0.00011898,2]
[381012358,1755942640169,-300.0,0.00011989,2]
[381012359,1755942640179,-300.0,0.00011989,2]
[381012361,1755942640189,-194.59800598,0.00011989,2]
[381012407,1755942645956,-44.40199402,0.00011989,2]
[381012408,1755942645967,-2500.0,0.0001199,2]
[381012409,1755942645978,-2500.0,0.0001199,2]
[381012410,1755942645988,-154.38,0.00012046,2]
[381012411,1755942645998,-200.0,0.00012048,2]
[381012412,1755942646008,-218.0,0.0001208,2]
[381012413,1755942646018,-2806.22,0.00012087,2]
[381012414,1755942646028,-250.0,0.00012104,2]
[381012415,1755942646038,-150.99,0.00012104,2]
[381012416,1755942646048,-1000.0,0.0001211,2]
[381012417,1755942646058,-602.46,0.00012245,2]
[381012418,1755942646070,-572.2,0.00012294,2]
[381012419,1755942646081,-166.02,0.00012383,2]
[381012420,1755942646090,-166.06,0.00012383,2]
[381012421,1755942646099,-277.35679052,0.00012421,2]
[381012422,1755942646111,-5231.53,0.00012429,2]
[381012423,1755942646123,-150.71,0.00012516,2]
[381012424,1755942646133,-301.26,0.0001252,2]
[381012425,1755942646143,-300.0,0.00012576,2]
[381012426,1755942646153,-392.0,0.0001263,2]
[381012427,1755942646162,-173.7,0.00012678,2]
[381012428,1755942646172,-322.6107,0.00012688,2]
[381012429,1755942646182,-721.12765535,0.00012688,2]
[381012430,1755942646192,-160.0,0.00012688,2]
[381012431,1755942646201,-150.0,0.00012694,2]
[381012432,1755942646210,-925.0,0.00012695,2]
[381012433,1755942646220,-3373.0,0.00012695,2]
[381012434,1755942646229,-2030.0,0.00012695,2]
[381012435,1755942646237,-1255.0,0.00012695,2]
[381012436,1755942646247,-1657.0,0.00012695,2]
[381012437,1755942646257,-566.0,0.00012695,2]
[381012438,1755942646266,-1298.0,0.00012695,2]
[381012439,1755942646275,-599.0,0.00012695,2]
[381012440,1755942646284,-29.92117864,0.00012695,2]
[381012446,1755942646395,-4123.07882136,0.00012695,2]
[381012447,1755942646405,-6093.0,0.00012695,2]
[381012448,1755942646416,-718.0,0.00012695,2]
[381012449,1755942646425,-13754.78822054,0.00012695,2]
[381012455,1755942800230,193.050208,0.00028766,120]
[381012456,1755942806435,500.0,0.00028766,120]
[381012458,1755942910407,166.0,0.00026003,120]
[381012459,1755942911658,166.0,0.00027303,120]
[381012460,1755942912926,166.0,0.00028668,120]
[381012462,1755943097779,3800.0,0.000285,120]
[381012463,1755943205859,166.0,0.00026012,120]
[381012464,1755943207101,166.0,0.00027313,120]
[381012469,1755943671406,400.0,0.0002876,120]
[381012471,1755943832097,-230.0,0.000107,2]
[381012472,1755943832108,-1249.0323732,0.00010736,2]
[381012473,1755943832120,-250.9676268,0.00010736,2]
[381012474,1755943832130,-688.34,0.00010765,2]
[381012475,1755943832140,-319.31716415,0.000108,2]
[381012476,1755943832156,-724.78283585,0.000108,2]
[381012477,1755943832166,-50.32716415,0.00010936,2]
[381012478,1755943832181,-199.67283585,0.00010936,2]
[381012479,1755943832190,-383.27254766,0.00010988,2]
[381012480,1755943832202,-428.28297185,0.00010988,2]
[381012481,1755943832214,-388.44448049,0.00010988,2]
[381012482,1755943832225,-166.66,0.00011033,2]
[381012483,1755943832235,-225.0,0.00011056,2]
[381012484,1755943832245,-154.2,0.0001138,2]
[381012485,1755943832255,-154.2,0.00011384,2]
[381012486,1755943832266,-154.2,0.00011387,2]
[381012487,1755943832276,-154.2,0.00011391,2]
[381012488,1755943832285,-154.2,0.00011394,2]
[381012489,1755943832295,-154.2,0.00011397,2]
[381012490,1755943832306,-154.2,0.00011401,2]
[381012491,1755943832316,-154.2,0.00011404,2]
[381012492,1755943832326,-154.2,0.00011407,2]
[381012493,1755943832336,-154.2,0.00011411,2]
[381012494,1755943832346,-154.2,0.00011414,2]
[381012495,1755943832356,-4835.05839951,0.00011417,2]
[381012496,1755943832367,-1861.28249816,0.00011417,2]
[381012497,1755943832379,-2140.1161384,0.00011417,2]
[381012498,1755943832391,-588.15296393,0.00011417,2]
[381012499,1755943832401,-1000.0,0.00011417,2]
[381012500,1755943832411,-154.2,0.00011417,2]
[381012501,1755943832421,-154.2,0.00011421,2]
[381012503,1755943832431,-154.2,0.00011424,2]
[381012504,1755943832440,-150.0,0.00011424,2]
[381012505,1755943832450,-154.2,0.00011427,2]
[381012506,1755943832460,-154.2,0.00011431,2]
[381012507,1755943832471,-154.2,0.00011434,2]
[381012509,1755943832483,-154.2,0.00011437,2]
[381012511,1755943832499,-464.07,0.00011694,2]
[381012513,1755943832508,-166.64,0.00011744,2]
[381012515,1755943832518,-2500.0,0.0001177,2]
[381012517,1755943832527,-150.0,0.00011808,2]
[381012519,1755943832538,-250.0,0.0001181,2]
[381012520,1755943832549,-2500.0,0.0001181,2]
[381012521,1755943832558,-2500.0,0.00011842,2]
[381012523,1755943832568,-1498.73703605,0.00011844,2]
[381012524,1755943832579,-9022.77800881,0.00011844,2]
[381012525,1755943832601,-179.63044022,0.00011844,2]
[381012526,1755943832611,-11792.79,0.00011854,2]
[381012527,1755943832620,-226.0,0.0001188,2]
[381012528,1755943832630,-1613.53,0.00011943,2]
[381012529,1755943832639,-152.22,0.00011978,2]
[381012530,1755943832649,-4575.49760317,0.00011983,2]
[381012531,1755943832659,-469.06,0.00012041,2]
[381012532,1755943832669,-1680.0,0.00012087,2]
[381012533,1755943832679,-173.7,0.000121,2]
[381012534,1755943832689,-529.30184999,0.00012115,2]
[381012535,1755943832699,-213.03,0.00012117,2]
[381012536,1755943832709,-569.52565348,0.00012345,2]
[381012537,1755943832719,-161.7144923,0.00012352,2]
[381012538,1755943832729,-167.37,0.00012407,2]
[381012539,1755943832739,-123112.81753252,0.00012444,2]
[381012540,1755943832750,-1050.01267006,0.00012444,2]
[381012541,1755943832790,-8442.10349547,0.00012444,2]
[381012542,1755943832800,-198.68341176,0.00012444,2]
[381012543,1755943832809,-500.0,0.00012445,2]
[381012544,1755943832818,-200.0,0.00012445,2]
[381012545,1755943832827,-500.0,0.00012445,2]
[381012546,1755943832837,-500.0,0.00012445,2]
[381012547,1755943832847,-500.0,0.00012445,2]
[381012548,1755943832857,-500.0,0.00012445,2]
[381012549,1755943832867,-500.0,0.00012445,2]
[381012550,1755943832876,-500.0,0.00012445,2]
[381012551,1755943832886,-500.0,0.00012445,2]
[381012552,1755943832897,-500.0,0.00012445,2]
[381012553,1755943832907,-500.0,0.00012445,2]
[381012554,1755943832916,-500.0,0.00012445,2]
[381012555,1755943832926,-500.0,0.00012445,2]
[381012556,1755943832936,-151.0,0.00012445,2]
[381012557,1755943832945,-151.0,0.00012445,2]
[381012558,1755943832955,-151.0,0.00012445,2]
[381012559,1755943832965,-151.0,0.00012445,2]
[381012560,1755943832975,-151.0,0.00012445,2]
[381012561,1755943832985,-151.0,0.00012445,2]
[381012562,1755943832994,-151.0,0.00012445,2]
[381012563,1755943833004,-151.0,0.00012445,2]
[381012564,1755943833013,-151.0,0.00012445,2]
[381012565,1755943833023,-151.0,0.00012445,2]
[381012566,1755943833032,-151.0,0.00012445,2]
[381012567,1755943833043,-8561.6289451,0.00012452,2]
[381012568,1755943833053,-18029.5056707,0.00012452,2]
[381012569,1755943833063,-462.1136953,0.00012452,2]
[381012570,1755943833073,-255.0,0.00012486,2]
[381012572,1755943833083,-500.0,0.000125,2]
[381012573,1755943833094,-408.48,0.00012516,2]
[381012574,1755943833104,-539.09,0.00012516,2]
[381012575,1755943833115,-408.48,0.00012516,2]
[381012576,1755943833125,-1078.84,0.00012547,2]
[381012577,1755943833135,-166.06,0.00012547,2]
[381012578,1755943833146,-500.0,0.00012555,2]
[381012579,1755943833156,-488.30688,0.0001257,2]
[381012580,1755943833166,-880.81066434,0.00012579,2]
[381012581,1755943833179,-500.0,0.0001259,2]
[381012582,1755943833193,-150.0,0.0001259,2]
[381012583,1755943833203,-150.0,0.0001259,2]
[381012584,1755943833213,-200.0,0.0001259,2]
[381012585,1755943833225,-152.36,0.0001259,2]
[381012586,1755943833235,-216.51,0.0001259,2]
[381012587,1755943833244,-305.83,0.0001259,2]
[381012588,1755943833254,-215.66,0.0001259,2]
[381012589,1755943833264,-215.77,0.0001259,2]
[381012590,1755943833274,-500.0,0.0001259,2]
[381012591,1755943833283,-210.08,0.00012591,2]
[381012592,1755943833293,-216.19,0.00012591,2]
[381012593,1755943833303,-209.96,0.00012591,2]
[381012594,1755943833313,-301.71,0.00012592,2]
[381012595,1755943833322,-305.54,0.00012604,2]
[381012596,1755943833331,-302.53,0.00012604,2]
[381012597,1755943833341,-500.0,0.0001261,2]
[381012598,1755943833350,-1641.67448722,0.00012623,2]
[381012599,1755943833361,-500.0,0.00012665,2]
[381012600,1755943833371,-1000.0,0.00012682,2]
[381012601,1755943833380,-199.73948569,0.00012695,2]
[381012602,1755943833389,-151.0,0.00012695,2]
[381012603,1755943833399,-507.0,0.00012695,2]
[381012604,1755943833408,-1526.0,0.00012695,2]
[381012605,1755943833418,-150.0,0.00012695,2]
[381012606,1755943833428,-857.0,0.00012695,2]
[381012607,1755943833437,-200.0,0.00012695,2]
[381012608,1755943833447,-150.0,0.00012695,2]
[381012609,1755943833458,-150.0,0.00012695,2]
[381012610,1755943833469,-254.36287709,0.00012695,2]
[381012611,1755943833480,-301.74,0.00012695,2]
[381012612,1755943833491,-150.0,0.00012695,2]
[381012613,1755943833503,-150.0,0.00012695,2]
[381012614,1755943833514,-150.0,0.00012695,2]
[381012615,1755943833528,-150.0,0.00012695,2]
[381012616,1755943833539,-150.0,0.00012695,2]
[381012617,1755943833550,-150.0,0.00012695,2]
[381012618,1755943833560,-150.0,0.00012695,2]
[381012619,1755943833570,-150.0,0.00012695,2]
[381012620,1755943833580,-150.0,0.00012695,2]
[381012621,1755943833592,-2030.0,0.00012695,2]
[381012622,1755943833602,-925.0,0.00012695,2]
[381012623,1755943833612,-1255.0,0.00012695,2]
[381012624,1755943833622,-3373.0,0.00012695,2]
[381012625,1755943833634,-1298.0,0.00012695,2]
[381012626,1755943833645,-566.0,0.00012695,2]
[381012627,1755943833655,-599.0,0.00012695,2]
[381012628,1755943833665,-1657.0,0.00012695,2]
[381012629,1755943833675,-894.0,0.00012695,2]
[381012630,1755943833685,-1173.0,0.00012695,2]
[381012631,1755943833695,-6093.0,0.00012695,2]
[381012632,1755943833706,-4153.0,0.00012695,2]
[381012633,1755943833716,-21510.0,0.00012695,2]
[381012634,1755943833726,-718.0,0.00012695,2]
[381012635,1755943833736,-173.7,0.000127,2]
[381012636,1755943833746,-408.48,0.000127,2]
[381012637,1755943833756,-500.0,0.0001272,2]
[381012638,1755943833767,-250.0,0.00012742,2]
[381012639,1755943833777,-150.0,0.00012742,2]
[381012640,1755943833787,-150.0,0.00012742,2]
[381012641,1755943833797,-161.71449228,0.00012765,2]
[381012642,1755943833807,-500.0,0.00012775,2]
[381012643,1755943833817,-301.15,0.000128,2]
[381012644,1755943833827,-150.0,0.00012802,2]
[381012645,1755943833837,-200.0,0.00012802,2]
[381012646,1755943833848,-500.0,0.0001283,2]
[381012647,1755943833858,-1000.0,0.00012844,2]
[381012648,1755943833870,-500.0,0.00012864,2]
[381012649,1755943833883,-150.0,0.00012864,2]
[381012650,1755943833895,-2000.0,0.00012901,2]
[381012651,1755943833904,-2000.0,0.00012901,2]
[381012652,1755943833914,-270.60159496,0.00012901,2]
[381012653,1755943833927,-729.39840504,0.00012901,2]
[381012654,1755943833937,-301.79,0.00012904,2]
[381012655,1755943833947,-601.45191293,0.00012939,2]
[381012656,1755943833958,-3007.0,0.00012969,2]
[381012657,1755943833967,-507.0,0.00012969,2]
[381012658,1755943833977,-1526.0,0.00012969,2]
[381012659,1755943833987,-857.0,0.00012969,2]
[381012660,1755943833997,-150.0,0.00012969,2]
[381012661,1755943834007,-150.0,0.00013016,2]
[381012662,1755943834016,-150.0,0.00013016,2]
[381012663,1755943834027,-3007.0,0.00013026,2]
[381012664,1755943834038,-1514.14942838,0.0001307,2]
[381012665,1755943834048,-221.0,0.0001307,2]
[381012666,1755943834058,-150.0,0.00013076,2]
[381012667,1755943834069,-1502.0,0.00013085,2]
[381012668,1755943834079,-151.0,0.00013108,2]
[381012669,1755943834089,-1000.0,0.00013108,2]
[381012670,1755943834099,-160.0,0.00013108,2]
[381012671,1755943834108,-1000.0,0.00013108,2]
[381012672,1755943834118,-1000.0,0.00013108,2]
[381012673,1755943834128,-1000.0,0.00013108,2]
[381012674,1755943834138,-1000.0,0.00013108,2]
[381012675,1755943834149,-1000.0,0.00013108,2]
[381012676,1755943834160,-1000.0,0.00013108,2]
[381012677,1755943834170,-1000.0,0.00013108,2]
[381012678,1755943834185,-1000.0,0.00013108,2]
[381012679,1755943834196,-1000.0,0.00013108,2]
[381012680,1755943834205,-1000.0,0.00013108,2]
[381012681,1755943834216,-322.6107,0.00013108,2]
[381012682,1755943834226,-1000.0,0.00013108,2]
[381012683,1755943834237,-721.12765535,0.00013108,2]
[381012684,1755943834247,-1000.0,0.00013108,2]
[381012685,1755943834259,-1000.0,0.00013108,2]
[381012686,1755943834269,-181.00000003,0.00013108,2]
[381012687,1755943834279,-1000.0,0.00013108,2]
[381012688,1755943834289,-5391.81600769,0.00013108,2]
[381012689,1755943834299,-1000.0,0.00013108,2]
[381012690,1755943834309,-1000.0,0.00013108,2]
[381012691,1755943834319,-151.0,0.00013108,2]
[381012692,1755943834328,-1000.0,0.00013108,2]
[381012693,1755943834338,-1000.0,0.00013108,2]
[381012694,1755943834348,-1000.0,0.00013108,2]
[381012695,1755943834358,-1000.0,0.00013108,2]
[381012696,1755943834368,-1000.0,0.00013108,2]
[381012697,1755943834378,-277.35679052,0.00013108,2]
[381012698,1755943834388,-799.08,0.00013112,2]
[381012699,1755943834399,-1502.0,0.00013119,2]
[381012700,1755943834409,-500.0,0.00013138,2]
[381012701,1755943834419,-200.0,0.00013138,2]
[381012702,1755943834429,-1507.0,0.00013144,2]
[381012703,1755943834438,-156.587,0.00013163,2]
[381012704,1755943834448,-5591.31319997,0.00013163,2]
[381012705,1755943834458,-1502.0,0.00013172,2]
[381012706,1755943834468,-161.71449228,0.00013178,2]
[381012707,1755943834477,-1502.0,0.00013194,2]
[381012708,1755943834487,-300.0,0.000132,2]
[381012709,1755943834497,-162.380719,0.00013218,2]
[381012710,1755943834507,-3740.83324836,0.00013218,2]
[381012711,1755943834520,-1041.215316,0.00013218,2]
[381012712,1755943834533,-1016.14322401,0.00013218,2]
[381012713,1755943834543,-507.0,0.00013243,2]
[381012714,1755943834553,-464.45565606,0.00013243,2]
[381012715,1755943834566,-1061.54434394,0.00013243,2]
[381012716,1755943834576,-857.0,0.00013243,2]
[381012717,1755943834585,-200.0,0.00013243,2]
[381012718,1755943834595,-1293.17410903,0.00013244,2]
[381012719,1755943838337,-208.82589097,0.00013244,2]